{"text_format":"2","workbook":"xlsx","n_sheets":1,"sheets":["Mesas Sectoriales"],"not_rendered":{"charts":0,"images":0,"macros":0,"external_links":0,"defined_names":1,"comments":0,"pivot_tables":0},"unopened":[],"bounds":{"document_bytes":16777216,"sheet_cells":100000,"run_cost":"one","rows_first":2000,"rows_last":500,"rows_between":2000,"halvings":0,"cell_chars":16384,"cell_head_chars":4096},"cells_cut":0,"cells_raw":0,"read":"whole","date_system":"1900"}

{"sheet":"Mesas Sectoriales","index":0,"n_rows":238,"n_cols":2,"rows_kept":238,"cut":false,"hidden":false,"merged":[]}
["DESCRIPCION","VALOR"]
["MESA SECTORIAL ADMINISTRACIÓN NÚCLEO"]
["Sindicatos presentes en la Mesa General de las Administraciones Públicas de Navarra:"]
["AFAPNA"]
["CCOO"]
["ELA"]
["LAB"]
["UGT"]
["Total Representantes elegidos: ",67]
["Número Representantes necesarios para formar parte de la Mesa:",6.7]
["Número de Representantes obtenidos por Sindicato:"]
["AFAPNA",12]
["ANPE",0]
["APF",0]
["APS",0]
["CCOO",10]
["CSI-CSIF",0]
["ELA",10]
["LAB",22]
["SATSE",0]
["SMN",0]
["STAJ",0]
["STEE-EILAS",0]
["UGT",13]
["USAE",0]
["USO",0]
["Sindicatos que forman parte de la Mesa:"]
["Sindicato","Porcentaje"]
["UGT",19.402985074626866]
[{"$f":"A16","v":"CCOO"},14.925373134328359]
[{"$f":"A18","v":"ELA"},14.925373134328359]
[{"$f":"A19","v":"LAB"},32.835820895522389]
["AFAPNA",17.910447761194028]
[]
["MESA SECTORIAL SERVICIO NAVARRO DE SALUD-OSASUNBIDEA"]
["Sindicatos presentes en la Mesa General de las Administraciones Públicas de Navarra:"]
["AFAPNA"]
["CCOO"]
["ELA"]
["LAB"]
["UGT"]
["Total Representantes elegidos: ",76]
["Número Representantes necesarios para formar parte de la Mesa:",7.6]
["Número de Representantes obtenidos por Sindicato:"]
["AFAPNA",8]
["ANPE",0]
["APF",0]
["APS",0]
["CCOO",6]
["CSI-CSIF",0]
["ELA",6]
["LAB",16]
["SATSE",12]
["SMN",15]
["STAJ",0]
["STEE-EILAS",0]
["UGT",7]
["USAE",6]
["USO",0]
["Sindicatos que forman parte de la Mesa:"]
["Sindicato","Porcentaje"]
["UGT",10]
[{"$f":"A49","v":"CCOO"},8.5714285714285712]
[{"$f":"A51","v":"ELA"},8.5714285714285712]
[{"$f":"A52","v":"LAB"},22.857142857142858]
["AFAPNA",11.428571428571429]
[{"$f":"A53","v":"SATSE"},17.142857142857142]
[{"$f":"A54","v":"SMN"},21.428571428571427]
[]
["MESA SECTORIAL DOCENTES"]
["Sindicatos presentes en la Mesa General de las Administraciones Públicas de Navarra:"]
["AFAPNA"]
["CCOO"]
["ELA"]
["LAB"]
["UGT"]
["Total Representantes elegidos: ",55]
["Número Representantes necesarios para formar parte de la Mesa:",5.5]
["Número de Representantes obtenidos por Sindicato:"]
["AFAPNA",11]
["ANPE",10]
["APF",0]
["APS",0]
["CCOO",7]
["CSI-CSIF",0]
["ELA",4]
["LAB",12]
["SATSE",0]
["SMN",0]
["STAJ",0]
["STEE-EILAS",11]
["UGT",0]
["USAE",0]
["USO",0]
["Sindicatos que forman parte de la Mesa:"]
["Sindicato","Porcentaje"]
["UGT",0]
[{"$f":"A84","v":"CCOO"},12.727272727272727]
[{"$f":"A86","v":"ELA"},7.2727272727272725]
[{"$f":"A87","v":"LAB"},21.818181818181817]
["AFAPNA",20]
[{"$f":"A81","v":"ANPE"},18.181818181818183]
[{"$f":"A91","v":"STEE-EILAS"},20]
[]
["MESA SECTORIAL POLICÍA FORAL"]
["Sindicatos presentes en la Mesa General de las Administraciones Públicas de Navarra:"]
["AFAPNA"]
["CCOO"]
["ELA"]
["LAB"]
["UGT"]
["Total Representantes elegidos: ",23]
["Número Representantes necesarios para formar parte de la Mesa:",3.3]
["Número de Representantes obtenidos por Sindicato:"]
["AFAPNA",0]
["ANPE",0]
["APS",0]
["APF",7]
["CCOO",4]
["CSI-CSIF",7]
["ELA",3]
["LAB",0]
["SATSE",0]
["SMN",0]
["STAJ",0]
["STEE-EILAS",0]
["UGT",2]
["USAE",0]
["USO",0]
["Sindicatos que forman parte de la Mesa:"]
["Sindicato","Porcentaje"]
["UGT",8.695652173913043]
[{"$f":"A119","v":"CCOO"},17.391304347826086]
[{"$f":"A121","v":"ELA"},13.043478260869565]
[{"$f":"A122","v":"LAB"},0]
["AFAPNA",0]
[{"$f":"A118","v":"APF"},30.434782608695652]
[{"$f":"A120","v":"CSI-CSIF"},30.434782608695652]
[]
["MESA SECTORIAL ANAP"]
["Sindicatos presentes en la Mesa General de las Administraciones Públicas de Navarra:"]
["AFAPNA"]
["CCOO"]
["ELA"]
["LAB"]
["UGT"]
["Total Representantes elegidos: ",17]
["Número Representantes necesarios para formar parte de la Mesa:",1.7]
["Número de Representantes obtenidos por Sindicato:"]
["AFAPNA",3]
["ANPE",0]
["APF",0]
["APS",0]
["CCOO",1]
["CSI-CSIF",0]
["ELA",3]
["LAB",7]
["SATSE",0]
["SMN",0]
["STAJ",0]
["STEE-EILAS",0]
["UGT",2]
["USAE",1]
["USO",0]
["Sindicatos que forman parte de la Mesa:"]
["Sindicato","Porcentaje"]
["UGT",12.5]
[{"$f":"A154","v":"CCOO"},6.25]
[{"$f":"A156","v":"ELA"},18.75]
[{"$f":"A157","v":"LAB"},43.75]
["AFAPNA",18.75]
[]
["MESA SECTORIAL SERVICIO DE PROTECCIÓN CIVIL Y BOMBEROS"]
["Sindicatos presentes en la Mesa General de las Administraciones Públicas de Navarra:"]
["AFAPNA"]
["CCOO"]
["ELA"]
["LAB"]
["UGT"]
["Total Representantes elegidos: ",17]
["Número Representantes necesarios para formar parte de la Mesa:",1.7]
["Número de Representantes obtenidos por Sindicato:"]
["AFAPNA",0]
["ANPE",0]
["APF",0]
["APS",0]
["CCOO",5]
["CSI-CSIF",0]
["ELA",3]
["LAB",8]
["SATSE",0]
["SMN",0]
["STAJ",0]
["STEE-EILAS",0]
["UGT",1]
["USAE",0]
["USO",0]
["Sindicatos que forman parte de la Mesa:"]
["Sindicato","Porcentaje"]
["UGT",5.882352941176471]
[{"$f":"A187","v":"CCOO"},29.411764705882351]
[{"$f":"A189","v":"ELA"},17.647058823529413]
[{"$f":"A190","v":"LAB"},47.058823529411768]
["AFAPNA",0]
[]
["MESA SECTORIAL JUSTICIA"]
["Sindicatos presentes en la Mesa General de las Administraciones Públicas de Navarra:"]
["AFAPNA"]
["CCOO"]
["ELA"]
["LAB"]
["UGT"]
["Total Representantes elegidos: ",17]
["Número Representantes necesarios para formar parte de la Mesa:",1.7]
["Número de Representantes obtenidos por Sindicato:"]
["AFAPNA",2]
["ANPE",0]
["APF",0]
["APS",0]
["CCOO",5]
["CSI-CSIF",1]
["ELA",1]
["LAB",2]
["SATSE",0]
["SMN",0]
["STAJ",4]
["STEE-EILAS",0]
["UGT",2]
["USAE",0]
["USO",0]
["Sindicatos que forman parte de la Mesa:"]
["Sindicato","Porcentaje"]
["UGT",12.5]
[{"$f":"A220","v":"CCOO"},31.25]
[{"$f":"A222","v":"ELA"},6.25]
[{"$f":"A223","v":"LAB"},12.5]
["AFAPNA",12.5]
[{"$f":"A226","v":"STAJ"},25]